[Event "Titled Tuesday Blitz November 08 Early 2022"]
[White "Zhao, Erick"]
[Black "Galchenko, Matvey"]
[WhiteFideId "30946930"]
[BlackFideId "24175480"]
[WhiteElo "2587"]
[BlackElo "2403"]
[Result "0-1"]
[Round "02"]
[TimeControl "180+1"]
[Date "2022.11.09"]
[WhiteClock "0:01:30"]
[BlackClock "0:02:10"]

1. e4 {[%clk 0:03:00]}  e6 {[%clk 0:02:56]} 2. d4 {[%clk 0:03:01]}  d5 {[%clk 0:02:56]} 3. Nc3 {[%clk 0:03:01]}  Bb4 {[%clk 0:02:56]} 4. exd5 {[%clk 0:03:02]}  exd5 {[%clk 0:02:57]} 5. Bd3 {[%clk 0:03:03]}  Nc6 {[%clk 0:02:58]} 6. Ne2 {[%clk 0:03:02]}  Nge7 {[%clk 0:02:58]} 7. O-O {[%clk 0:03:03]}  O-O {[%clk 0:02:59]} 8. a3 {[%clk 0:03:03]}  Ba5 {[%clk 0:02:58]} 9. b4 {[%clk 0:03:03]}  Bb6 {[%clk 0:02:58]} 10. b5 {[%clk 0:02:58]}  Na5 {[%clk 0:02:48]} 11. Na4 {[%clk 0:02:52]}  Bf5 {[%clk 0:02:44]} 12. Bxf5 {[%clk 0:02:43]}  Nxf5 {[%clk 0:02:45]} 13. Qd3 {[%clk 0:02:44]}  Qd7 {[%clk 0:02:34]} 14. Nc5 {[%clk 0:02:21]}  Bxc5 {[%clk 0:02:29]} 15. dxc5 {[%clk 0:02:22]}  Rfe8 {[%clk 0:02:25]} 16. Nf4 {[%clk 0:02:06]}  c6 {[%clk 0:02:19]} 17. a4 {[%clk 0:02:02]}  Nc4 {[%clk 0:02:13]} 18. Bd2 {[%clk 0:01:41]}  Re4 {[%clk 0:02:11]} 19. Rfe1 {[%clk 0:01:37]}  Rd4 {[%clk 0:02:10]} 20. bxc6 {[%clk 0:01:30]}  bxc6 {[%clk 0:02:10]} 0-1


[Site "https://www.chess.com"]

[Event "Titled Tuesday Blitz November 08 Early 2022"]
[White "Zia, Tahsin Tajwar"]
[Black "Matinian, Nikita"]
[WhiteFideId "10211888"]
[BlackFideId "24129100"]
[WhiteElo "2061"]
[BlackElo "2422"]
[Result "0-1"]
[Round "02"]
[TimeControl "180+1"]
[Date "2022.11.09"]
[WhiteClock "0:00:02"]
[BlackClock "0:00:27"]

1. d4 {[%clk 0:03:00]}  Nf6 {[%clk 0:02:59]} 2. Bg5 {[%clk 0:03:00]}  d5 {[%clk 0:02:57]} 3. e3 {[%clk 0:02:59]}  c5 {[%clk 0:02:54]} 4. Bxf6 {[%clk 0:03:00]}  gxf6 {[%clk 0:02:54]} 5. Nc3 {[%clk 0:03:01]}  Nc6 {[%clk 0:02:51]} 6. Qh5 {[%clk 0:03:01]}  cxd4 {[%clk 0:02:49]} 7. exd4 {[%clk 0:03:01]}  f5 {[%clk 0:02:41]} 8. Bb5 {[%clk 0:02:59]}  e6 {[%clk 0:02:37]} 9. Nge2 {[%clk 0:02:56]}  Bd6 {[%clk 0:02:35]} 10. O-O-O {[%clk 0:02:47]}  Bd7 {[%clk 0:02:35]} 11. Bxc6 {[%clk 0:02:45]}  bxc6 {[%clk 0:02:35]} 12. Rhe1 {[%clk 0:02:38]}  Rb8 {[%clk 0:02:35]} 13. Ng3 {[%clk 0:02:36]}  Qb6 {[%clk 0:02:24]} 14. b3 {[%clk 0:02:33]}  Bb4 {[%clk 0:02:06]} 15. Na4 {[%clk 0:01:52]}  Qa5 {[%clk 0:01:48]} 16. Re3 {[%clk 0:01:52]}  Ba3+ {[%clk 0:01:43]} 17. Nb2 {[%clk 0:01:48]}  f4 {[%clk 0:01:42]} 18. Qe5 {[%clk 0:01:42]}  fxe3 {[%clk 0:01:17]} 19. Qxb8+ {[%clk 0:01:25]}  Ke7 {[%clk 0:01:17]} 20. Qxh8 {[%clk 0:01:13]}  Qc3 {[%clk 0:01:17]} 21. Rd3 {[%clk 0:01:06]}  Qe1+ {[%clk 0:01:01]} 22. Rd1 {[%clk 0:01:03]}  exf2 {[%clk 0:00:44]} 23. Qe5 {[%clk 0:00:23]}  Qc3 {[%clk 0:00:43]} 24. Nf5+ {[%clk 0:00:19]}  Kd8 {[%clk 0:00:44]} 25. Qe3 {[%clk 0:00:04]}  Qxb2+ {[%clk 0:00:28]} 26. Kd2 {[%clk 0:00:04]}  Bb4+ {[%clk 0:00:28]} 27. Ke2 {[%clk 0:00:03]}  Qxc2+ {[%clk 0:00:28]} 28. Kf3 {[%clk 0:00:02]}  Qxf5+ {[%clk 0:00:27]} 0-1


[Site "https://www.chess.com"]

[Event "Titled Tuesday Blitz November 08 Early 2022"]
[White "Andreikin, Dmitry"]
[Black "Akbas, Umut Ata"]
[WhiteFideId "4158814"]
[BlackFideId "44572646"]
[WhiteElo "2736"]
[BlackElo "2192"]
[Result "1-0"]
[Round "03"]
[TimeControl "180+1"]
[Date "2022.11.08"]
[WhiteClock "0:00:46"]
[BlackClock "0:00:01"]

1. e4 {[%clk 0:02:44]}  c5 {[%clk 0:02:58]} 2. Nc3 {[%clk 0:02:43]}  e6 {[%clk 0:02:58]} 3. Nge2 {[%clk 0:02:43]}  Nc6 {[%clk 0:02:49]} 4. g3 {[%clk 0:02:43]}  d5 {[%clk 0:02:49]} 5. exd5 {[%clk 0:02:42]}  exd5 {[%clk 0:02:49]} 6. d4 {[%clk 0:02:42]}  Nf6 {[%clk 0:02:47]} 7. Bg2 {[%clk 0:02:42]}  Bg4 {[%clk 0:02:29]} 8. h3 {[%clk 0:02:42]}  Bxe2 {[%clk 0:02:26]} 9. Qxe2+ {[%clk 0:02:36]}  Be7 {[%clk 0:02:25]} 10. dxc5 {[%clk 0:02:36]}  O-O {[%clk 0:02:25]} 11. O-O {[%clk 0:02:35]}  Bxc5 {[%clk 0:02:23]} 12. Bg5 {[%clk 0:02:35]}  h6 {[%clk 0:02:19]} 13. Bxf6 {[%clk 0:02:34]}  Qxf6 {[%clk 0:02:20]} 14. Qb5 {[%clk 0:02:33]}  Bb6 {[%clk 0:01:48]} 15. Nxd5 {[%clk 0:02:32]}  Qg5 {[%clk 0:01:48]} 16. h4 {[%clk 0:02:14]}  Qe5 {[%clk 0:01:40]} 17. Rfe1 {[%clk 0:02:08]}  Qd4 {[%clk 0:01:24]} 18. Nxb6 {[%clk 0:02:08]}  axb6 {[%clk 0:01:25]} 19. c3 {[%clk 0:02:05]}  Qd8 {[%clk 0:00:55]} 20. Bxc6 {[%clk 0:02:02]}  bxc6 {[%clk 0:00:56]} 21. Qxc6 {[%clk 0:02:03]}  Qd2 {[%clk 0:00:56]} 22. Qb5 {[%clk 0:01:54]}  Rfd8 {[%clk 0:00:50]} 23. Re2 {[%clk 0:01:49]}  Qd6 {[%clk 0:00:47]} 24. a3 {[%clk 0:01:45]}  Ra5 {[%clk 0:00:41]} 25. Qb3 {[%clk 0:01:39]}  g5 {[%clk 0:00:31]} 26. hxg5 {[%clk 0:01:35]}  Rxg5 {[%clk 0:00:31]} 27. Rae1 {[%clk 0:01:34]}  Rd7 {[%clk 0:00:25]} 28. Qb4 {[%clk 0:01:27]}  Qc7 {[%clk 0:00:13]} 29. Re8+ {[%clk 0:01:22]}  Kh7 {[%clk 0:00:13]} 30. Qe4+ {[%clk 0:01:19]}  Kg7 {[%clk 0:00:12]} 31. Qa8 {[%clk 0:01:14]}  Rd2 {[%clk 0:00:06]} 32. Rg8+ {[%clk 0:01:13]}  Kf6 {[%clk 0:00:06]} 33. Rxg5 {[%clk 0:01:09]}  hxg5 {[%clk 0:00:07]} 34. Qf3+ {[%clk 0:01:08]}  Kg7 {[%clk 0:00:06]} 35. Qe3 {[%clk 0:01:07]}  Rd5 {[%clk 0:00:07]} 36. Qe4 {[%clk 0:00:59]}  Qd6 {[%clk 0:00:07]} 37. Kg2 {[%clk 0:00:56]}  b5 {[%clk 0:00:06]} 38. Re2 {[%clk 0:00:53]}  Qc5 {[%clk 0:00:05]} 39. a4 {[%clk 0:00:49]}  bxa4 {[%clk 0:00:04]} 40. Qxa4 {[%clk 0:00:50]}  Qd6 {[%clk 0:00:02]} 41. Qe4 {[%clk 0:00:49]}  Kg8 {[%clk 0:00:02]} 42. b4 {[%clk 0:00:48]}  Qc7 {[%clk 0:00:01]} 43. c4 {[%clk 0:00:46]} 1-0


[Site "https://www.chess.com"]

[Event "Titled Tuesday Blitz November 08 Early 2022"]
[White "Aung Thant Zin"]
[Black "Manelyuk, Daniil"]
[WhiteFideId "13000063"]
[BlackFideId "44173920"]
[WhiteElo "2278"]
[BlackElo "2209"]
[Result "1-0"]
[Round "03"]
[TimeControl "180+1"]
[Date "2022.11.09"]
[WhiteClock "0:00:20"]
[BlackClock "0:00:02"]

1. e4 {[%clk 0:02:52]}  e6 {[%clk 0:02:58]} 2. d4 {[%clk 0:02:49]}  d5 {[%clk 0:02:56]} 3. Nc3 {[%clk 0:02:49]}  Bb4 {[%clk 0:02:43]} 4. exd5 {[%clk 0:02:47]}  exd5 {[%clk 0:02:41]} 5. Bd3 {[%clk 0:02:47]}  Ne7 {[%clk 0:02:40]} 6. Ne2 {[%clk 0:02:47]}  c6 {[%clk 0:02:40]} 7. O-O {[%clk 0:02:43]}  Nd7 {[%clk 0:02:40]} 8. h3 {[%clk 0:02:34]}  O-O {[%clk 0:02:38]} 9. a3 {[%clk 0:02:31]}  Bd6 {[%clk 0:02:36]} 10. Bf4 {[%clk 0:02:31]}  Qc7 {[%clk 0:02:35]} 11. Qd2 {[%clk 0:02:30]}  f5 {[%clk 0:02:34]} 12. Rae1 {[%clk 0:02:26]}  Ng6 {[%clk 0:02:34]} 13. Bxd6 {[%clk 0:02:19]}  Qxd6 {[%clk 0:02:33]} 14. Ng3 {[%clk 0:02:00]}  Nh4 {[%clk 0:02:12]} 15. Qg5 {[%clk 0:01:51]}  Qf6 {[%clk 0:02:05]} 16. Qxf6 {[%clk 0:01:41]}  Nxf6 {[%clk 0:02:04]} 17. Re7 {[%clk 0:01:31]}  Rf7 {[%clk 0:01:54]} 18. Rfe1 {[%clk 0:01:26]}  Ne4 {[%clk 0:01:52]} 19. Rxf7 {[%clk 0:01:22]}  Kxf7 {[%clk 0:01:52]} 20. Bxe4 {[%clk 0:01:10]}  fxe4 {[%clk 0:01:50]} 21. Nd1 {[%clk 0:01:10]}  Bd7 {[%clk 0:01:46]} 22. Ne3 {[%clk 0:01:10]}  Kg6 {[%clk 0:01:46]} 23. Rc1 {[%clk 0:01:07]}  Kf6 {[%clk 0:01:08]} 24. c4 {[%clk 0:01:05]}  Ke6 {[%clk 0:00:31]} 25. cxd5+ {[%clk 0:01:04]}  cxd5 {[%clk 0:00:31]} 26. Rc5 {[%clk 0:00:53]}  Bc6 {[%clk 0:00:28]} 27. b4 {[%clk 0:00:53]}  a6 {[%clk 0:00:28]} 28. a4 {[%clk 0:00:51]}  Bxa4 {[%clk 0:00:19]} 29. Rxd5 {[%clk 0:00:49]}  Ng6 {[%clk 0:00:17]} 30. Nxe4 {[%clk 0:00:43]}  Bc6 {[%clk 0:00:16]} 31. Nc5+ {[%clk 0:00:42]}  Ke7 {[%clk 0:00:14]} 32. Rg5 {[%clk 0:00:36]}  b6 {[%clk 0:00:13]} 33. Nd3 {[%clk 0:00:35]}  Be4 {[%clk 0:00:10]} 34. Ne5 {[%clk 0:00:34]}  a5 {[%clk 0:00:08]} 35. bxa5 {[%clk 0:00:33]}  bxa5 {[%clk 0:00:09]} 36. f3 {[%clk 0:00:30]}  Bb1 {[%clk 0:00:09]} 37. Nc6+ {[%clk 0:00:27]}  Kf6 {[%clk 0:00:04]} 38. Rxa5 {[%clk 0:00:25]}  Rc8 {[%clk 0:00:04]} 39. d5 {[%clk 0:00:24]}  Nf4 {[%clk 0:00:04]} 40. Kh2 {[%clk 0:00:21]}  Bg6 {[%clk 0:00:02]} 41. Kg3 {[%clk 0:00:20]} 1-0


[Site "https://www.chess.com"]

[Event "Titled Tuesday Blitz November 08 Early 2022"]
[White "Avazkhonov, Alikhon"]
[Black "Goroshkov, Maksym"]
[WhiteFideId "14208504"]
[BlackFideId "14142716"]
[WhiteElo "1739"]
[BlackElo "2257"]
[Result "0-1"]
[Round "03"]
[TimeControl "180+1"]
[Date "2022.11.09"]
[WhiteClock "0:00:02"]
[BlackClock "0:01:56"]

1. d4 {[%clk 0:03:00]}  Nf6 {[%clk 0:02:59]} 2. c4 {[%clk 0:03:01]}  d6 {[%clk 0:03:00]} 3. Nc3 {[%clk 0:03:01]}  g6 {[%clk 0:03:00]} 4. e4 {[%clk 0:03:01]}  Bg7 {[%clk 0:03:01]} 5. f3 {[%clk 0:03:01]}  O-O {[%clk 0:03:01]} 6. Be3 {[%clk 0:03:02]}  e5 {[%clk 0:03:01]} 7. d5 {[%clk 0:03:01]}  Nh5 {[%clk 0:03:01]} 8. Nge2 {[%clk 0:03:00]}  f5 {[%clk 0:03:01]} 9. exf5 {[%clk 0:03:01]}  gxf5 {[%clk 0:03:00]} 10. Qd2 {[%clk 0:03:02]}  f4 {[%clk 0:02:59]} 11. Bf2 {[%clk 0:03:01]}  Bf5 {[%clk 0:02:58]} 12. Nc1 {[%clk 0:03:01]}  Nd7 {[%clk 0:02:57]} 13. Bd3 {[%clk 0:02:58]}  Qg5 {[%clk 0:02:53]} 14. Bxf5 {[%clk 0:02:56]}  Rxf5 {[%clk 0:02:52]} 15. Rg1 {[%clk 0:02:53]}  Nhf6 {[%clk 0:02:47]} 16. Nd3 {[%clk 0:01:36]}  Re8 {[%clk 0:02:46]} 17. O-O-O {[%clk 0:01:22]}  e4 {[%clk 0:02:40]} 18. h4 {[%clk 0:01:09]}  Qg6 {[%clk 0:02:32]} 19. fxe4 {[%clk 0:00:14]}  Nxe4 {[%clk 0:02:31]} 20. Nxe4 {[%clk 0:00:14]}  Rxe4 {[%clk 0:02:32]} 21. Qc2 {[%clk 0:00:13]}  Ne5 {[%clk 0:02:23]} 22. Nxe5 {[%clk 0:00:10]}  Rfxe5 {[%clk 0:02:23]} 23. g4 {[%clk 0:00:05]}  Re2 {[%clk 0:02:22]} 24. Qxg6 {[%clk 0:00:04]}  hxg6 {[%clk 0:02:23]} 25. Bd4 {[%clk 0:00:04]}  R5e4 {[%clk 0:02:20]} 26. Bxg7 {[%clk 0:00:05]}  Kxg7 {[%clk 0:02:21]} 27. Kb1 {[%clk 0:00:04]}  Rxc4 {[%clk 0:02:19]} 28. Rc1 {[%clk 0:00:05]}  Rxc1+ {[%clk 0:02:17]} 29. Rxc1 {[%clk 0:00:06]}  Re7 {[%clk 0:02:17]} 30. Rf1 {[%clk 0:00:03]}  Rf7 {[%clk 0:02:17]} 31. Rf3 {[%clk 0:00:03]}  g5 {[%clk 0:02:17]} 32. h5 {[%clk 0:00:03]}  Re7 {[%clk 0:02:16]} 33. Rc3 {[%clk 0:00:02]}  Rf7 {[%clk 0:02:16]} 34. Rf3 {[%clk 0:00:01]}  c6 {[%clk 0:02:17]} 35. Kc2 {[%clk 0:00:02]}  cxd5 {[%clk 0:02:17]} 36. Kd3 {[%clk 0:00:03]}  Re7 {[%clk 0:02:14]} 37. Kd4 {[%clk 0:00:03]}  Re2 {[%clk 0:02:14]} 38. Rb3 {[%clk 0:00:03]}  Rd2+ {[%clk 0:02:05]} 39. Kc3 {[%clk 0:00:02]}  Rg2 {[%clk 0:02:04]} 40. Rxb7+ {[%clk 0:00:02]}  Kf6 {[%clk 0:02:05]} 41. h6 {[%clk 0:00:01]}  Rxg4 {[%clk 0:02:04]} 42. h7 {[%clk 0:00:02]}  Rh4 {[%clk 0:02:05]} 43. Rxa7 {[%clk 0:00:02]}  f3 {[%clk 0:02:02]} 44. Kd3 {[%clk 0:00:03]}  g4 {[%clk 0:02:01]} 45. Ke3 {[%clk 0:00:04]}  Rh2 {[%clk 0:01:59]} 46. Ra6 {[%clk 0:00:02]}  Ke5 {[%clk 0:01:58]} 47. Ra8 {[%clk 0:00:03]}  Rxh7 {[%clk 0:01:58]} 48. Kd3 {[%clk 0:00:03]}  g3 {[%clk 0:01:57]} 49. Re8+ {[%clk 0:00:02]}  Kf4 {[%clk 0:01:56]} 50. Rf8+ {[%clk 0:00:03]}  Kg4 {[%clk 0:01:57]} 51. b4 {[%clk 0:00:03]}  g2 {[%clk 0:01:56]} 52. b5 {[%clk 0:00:02]}  Rg7 {[%clk 0:01:56]} 0-1


[Site "https://www.chess.com"]

[Event "Titled Tuesday Blitz November 08 Early 2022"]
[White "Averjanov, Alexey"]
[Black "Pichot, Alan"]
[WhiteFideId "14109867"]
[BlackFideId "110973"]
[WhiteElo "2581"]
[BlackElo "2560"]
[Result "1-0"]
[Round "03"]
[TimeControl "180+1"]
[Date "2022.11.09"]
[WhiteClock "0:00:10"]
[BlackClock "0:00:18"]

1. d4 {[%clk 0:03:00]}  Nf6 {[%clk 0:02:59]} 2. c4 {[%clk 0:02:58]}  d6 {[%clk 0:02:54]} 3. Nc3 {[%clk 0:02:52]}  Bf5 {[%clk 0:02:54]} 4. Nf3 {[%clk 0:02:51]}  Nbd7 {[%clk 0:02:53]} 5. g3 {[%clk 0:02:50]}  e5 {[%clk 0:02:52]} 6. Bg2 {[%clk 0:02:48]}  c6 {[%clk 0:02:52]} 7. O-O {[%clk 0:02:48]}  Be7 {[%clk 0:02:52]} 8. b3 {[%clk 0:02:48]}  O-O {[%clk 0:02:52]} 9. Bb2 {[%clk 0:02:45]}  Qc7 {[%clk 0:02:51]} 10. Nh4 {[%clk 0:02:42]}  Bg4 {[%clk 0:02:49]} 11. h3 {[%clk 0:02:42]}  Bh5 {[%clk 0:02:48]} 12. Nf5 {[%clk 0:02:42]}  Rfe8 {[%clk 0:02:48]} 13. Nxe7+ {[%clk 0:02:41]}  Rxe7 {[%clk 0:02:48]} 14. Qd2 {[%clk 0:02:39]}  e4 {[%clk 0:02:43]} 15. d5 {[%clk 0:02:35]}  c5 {[%clk 0:02:20]} 16. Nb5 {[%clk 0:02:32]}  Qb6 {[%clk 0:02:19]} 17. Qf4 {[%clk 0:02:28]}  Ne5 {[%clk 0:02:19]} 18. Nc3 {[%clk 0:02:12]}  Bg6 {[%clk 0:02:05]} 19. Nxe4 {[%clk 0:01:55]}  Nxe4 {[%clk 0:01:51]} 20. Bxe4 {[%clk 0:01:54]}  Nxc4 {[%clk 0:01:52]} 21. Bxg6 {[%clk 0:01:21]}  Nxb2 {[%clk 0:01:52]} 22. Bxh7+ {[%clk 0:01:18]}  Kf8 {[%clk 0:01:47]} 23. Qd2 {[%clk 0:01:17]}  Qa6 {[%clk 0:01:32]} 24. Rfe1 {[%clk 0:01:09]}  Qa3 {[%clk 0:01:30]} 25. Rab1 {[%clk 0:01:07]}  Qxa2 {[%clk 0:01:27]} 26. Qxb2 {[%clk 0:01:05]}  Qxb2 {[%clk 0:01:27]} 27. Rxb2 {[%clk 0:01:05]}  g6 {[%clk 0:01:28]} 28. Kg2 {[%clk 0:01:03]}  Kg7 {[%clk 0:01:28]} 29. Bxg6 {[%clk 0:01:01]}  fxg6 {[%clk 0:01:29]} 30. e4 {[%clk 0:00:59]}  a5 {[%clk 0:01:24]} 31. f4 {[%clk 0:00:59]}  b5 {[%clk 0:01:25]} 32. Kf3 {[%clk 0:00:57]}  a4 {[%clk 0:01:25]} 33. bxa4 {[%clk 0:00:54]}  b4 {[%clk 0:01:26]} 34. Ra1 {[%clk 0:00:52]}  Rea7 {[%clk 0:01:24]} 35. e5 {[%clk 0:00:48]}  Rxa4 {[%clk 0:01:23]} 36. Rxa4 {[%clk 0:00:46]}  Rxa4 {[%clk 0:01:24]} 37. exd6 {[%clk 0:00:45]}  Kf7 {[%clk 0:01:10]} 38. Rc2 {[%clk 0:00:45]}  Ra5 {[%clk 0:01:10]} 39. Ke4 {[%clk 0:00:41]}  b3 {[%clk 0:01:09]} 40. Rb2 {[%clk 0:00:39]}  c4 {[%clk 0:00:51]} 41. Kd4 {[%clk 0:00:36]}  Ra4 {[%clk 0:00:50]} 42. Re2 {[%clk 0:00:33]}  Ra2 {[%clk 0:00:25]} 43. d7 {[%clk 0:00:30]}  Rxe2 {[%clk 0:00:24]} 44. d8=Q {[%clk 0:00:30]}  b2 {[%clk 0:00:25]} 45. Qd7+ {[%clk 0:00:26]}  Kf6 {[%clk 0:00:25]} 46. Qc6+ {[%clk 0:00:23]}  Kg7 {[%clk 0:00:25]} 47. Qb7+ {[%clk 0:00:20]}  Kf6 {[%clk 0:00:25]} 48. Kxc4 {[%clk 0:00:15]}  Rc2+ {[%clk 0:00:18]} 49. Kd3 {[%clk 0:00:14]}  Rg2 {[%clk 0:00:19]} 50. g4 {[%clk 0:00:13]}  g5 {[%clk 0:00:17]} 51. Qb6+ {[%clk 0:00:11]}  Kf7 {[%clk 0:00:17]} 52. fxg5 {[%clk 0:00:11]}  Rg3+ {[%clk 0:00:17]} 53. Ke4 {[%clk 0:00:10]}  Rb3 {[%clk 0:00:18]} 54. Qxb3 {[%clk 0:00:10]}  b1=Q+ {[%clk 0:00:18]} 55. Qxb1 {[%clk 0:00:10]} 1-0


[Site "https://www.chess.com"]

[Event "Titled Tuesday Blitz November 08 Early 2022"]
[White "Baches Garcia, Guillermo"]
[Black "Sovetbekova, Nurai"]
[WhiteFideId "2209764"]
[BlackFideId "13801910"]
[WhiteElo "2444"]
[BlackElo "1925"]
[Result "1-0"]
[Round "03"]
[TimeControl "180+1"]
[Date "2022.11.09"]
[WhiteClock "0:00:31"]
[BlackClock "0:00:04"]

1. e4 {[%clk 0:03:00]}  c5 {[%clk 0:02:59]} 2. Nf3 {[%clk 0:03:01]}  d6 {[%clk 0:02:59]} 3. d4 {[%clk 0:02:59]}  cxd4 {[%clk 0:03:00]} 4. Nxd4 {[%clk 0:02:59]}  Nf6 {[%clk 0:03:00]} 5. Nc3 {[%clk 0:03:00]}  a6 {[%clk 0:03:01]} 6. Be3 {[%clk 0:03:01]}  e5 {[%clk 0:03:00]} 7. Nb3 {[%clk 0:03:01]}  Be7 {[%clk 0:02:52]} 8. f3 {[%clk 0:03:02]}  h5 {[%clk 0:02:52]} 9. Na4 {[%clk 0:02:58]}  Nbd7 {[%clk 0:02:39]} 10. c4 {[%clk 0:02:58]}  O-O {[%clk 0:02:30]} 11. Be2 {[%clk 0:02:57]}  Qc7 {[%clk 0:02:19]} 12. Rc1 {[%clk 0:02:51]}  Nc5 {[%clk 0:02:17]} 13. Nc3 {[%clk 0:02:42]}  Nxb3 {[%clk 0:01:55]} 14. Qxb3 {[%clk 0:02:38]}  Be6 {[%clk 0:01:50]} 15. Nd5 {[%clk 0:02:34]}  Bxd5 {[%clk 0:01:49]} 16. cxd5 {[%clk 0:02:26]}  Qd7 {[%clk 0:01:42]} 17. O-O {[%clk 0:02:19]}  Rac8 {[%clk 0:01:20]} 18. a4 {[%clk 0:02:03]}  Nh7 {[%clk 0:01:09]} 19. Rxc8 {[%clk 0:01:47]}  Rxc8 {[%clk 0:01:07]} 20. Rc1 {[%clk 0:01:39]}  Bg5 {[%clk 0:01:03]} 21. Bxg5 {[%clk 0:01:28]}  Nxg5 {[%clk 0:01:01]} 22. Qe3 {[%clk 0:01:25]}  Nh7 {[%clk 0:00:46]} 23. b3 {[%clk 0:01:19]}  Nf6 {[%clk 0:00:32]} 24. Rc3 {[%clk 0:01:06]}  Rxc3 {[%clk 0:00:31]} 25. Qxc3 {[%clk 0:01:06]}  h4 {[%clk 0:00:29]} 26. a5 {[%clk 0:01:02]}  Nh5 {[%clk 0:00:24]} 27. Kf2 {[%clk 0:00:56]}  Nf4 {[%clk 0:00:22]} 28. Bf1 {[%clk 0:00:51]}  Qd8 {[%clk 0:00:18]} 29. g3 {[%clk 0:00:48]}  hxg3+ {[%clk 0:00:19]} 30. hxg3 {[%clk 0:00:48]}  Ng6 {[%clk 0:00:18]} 31. Bh3 {[%clk 0:00:42]}  Kh7 {[%clk 0:00:15]} 32. Bf5 {[%clk 0:00:35]}  Kg8 {[%clk 0:00:08]} 33. Qc8 {[%clk 0:00:32]}  Qxc8 {[%clk 0:00:06]} 34. Bxc8 {[%clk 0:00:33]}  Ne7 {[%clk 0:00:03]} 35. Bxb7 {[%clk 0:00:32]}  f5 {[%clk 0:00:04]} 36. Bxa6 {[%clk 0:00:31]}  fxe4 {[%clk 0:00:04]} 37. fxe4 {[%clk 0:00:31]}  Kf7 {[%clk 0:00:04]} 38. Bb7 {[%clk 0:00:31]} 1-0


[Site "https://www.chess.com"]

[Event "Titled Tuesday Blitz November 08 Early 2022"]
[White "Baskakov, Egor"]
[Black "Sjugirov, Sanan"]
[WhiteFideId "24197866"]
[BlackFideId "4189302"]
[WhiteElo "2211"]
[BlackElo "2611"]
[Result "1-0"]
[Round "03"]
[TimeControl "180+1"]
[Date "2022.11.08"]
[WhiteClock "0:00:42"]
[BlackClock "0:00:02"]

1. e4 {[%clk 0:03:00]}  c5 {[%clk 0:02:59]} 2. Nf3 {[%clk 0:03:00]}  d6 {[%clk 0:02:59]} 3. d4 {[%clk 0:03:00]}  cxd4 {[%clk 0:03:00]} 4. Nxd4 {[%clk 0:03:01]}  Nf6 {[%clk 0:03:00]} 5. Nc3 {[%clk 0:03:01]}  a6 {[%clk 0:03:00]} 6. a4 {[%clk 0:03:01]}  e5 {[%clk 0:02:59]} 7. Nde2 {[%clk 0:03:01]}  Be7 {[%clk 0:02:45]} 8. g3 {[%clk 0:03:00]}  O-O {[%clk 0:02:36]} 9. Bg2 {[%clk 0:02:59]}  Nc6 {[%clk 0:02:30]} 10. Nd5 {[%clk 0:02:58]}  Nxd5 {[%clk 0:02:21]} 11. exd5 {[%clk 0:02:59]}  Nb8 {[%clk 0:02:21]} 12. a5 {[%clk 0:02:59]}  Nd7 {[%clk 0:02:15]} 13. O-O {[%clk 0:02:56]}  f5 {[%clk 0:02:15]} 14. Be3 {[%clk 0:02:54]}  Nf6 {[%clk 0:02:13]} 15. h3 {[%clk 0:02:53]}  Bd7 {[%clk 0:01:39]} 16. c4 {[%clk 0:02:52]}  Kh8 {[%clk 0:01:39]} 17. b4 {[%clk 0:02:51]}  Rc8 {[%clk 0:01:35]} 18. Rc1 {[%clk 0:02:49]}  Qe8 {[%clk 0:01:31]} 19. f4 {[%clk 0:02:46]}  exf4 {[%clk 0:01:14]} 20. Nxf4 {[%clk 0:02:42]}  Ne4 {[%clk 0:01:13]} 21. Kh2 {[%clk 0:02:40]}  Bf6 {[%clk 0:01:10]} 22. Bd4 {[%clk 0:02:38]}  Be5 {[%clk 0:00:54]} 23. Qd3 {[%clk 0:02:36]}  Qe7 {[%clk 0:00:29]} 24. Rce1 {[%clk 0:02:26]}  Bxd4 {[%clk 0:00:19]} 25. Qxd4 {[%clk 0:02:26]}  Rce8 {[%clk 0:00:19]} 26. Re3 {[%clk 0:02:16]}  Qe5 {[%clk 0:00:06]} 27. Qxe5 {[%clk 0:02:15]}  dxe5 {[%clk 0:00:07]} 28. Nd3 {[%clk 0:02:13]}  Nd2 {[%clk 0:00:07]} 29. Rc1 {[%clk 0:02:11]}  e4 {[%clk 0:00:04]} 30. Nc5 {[%clk 0:02:08]}  Bc8 {[%clk 0:00:04]} 31. Rc2 {[%clk 0:02:08]}  Nf3+ {[%clk 0:00:03]} 32. Bxf3 {[%clk 0:02:08]}  exf3 {[%clk 0:00:04]} 33. Rxf3 {[%clk 0:02:09]}  g5 {[%clk 0:00:04]} 34. Rcf2 {[%clk 0:02:09]}  Kg7 {[%clk 0:00:04]} 35. Na4 {[%clk 0:02:03]}  Re4 {[%clk 0:00:04]} 36. Nb6 {[%clk 0:02:03]}  Kg6 {[%clk 0:00:03]} 37. Nxc8 {[%clk 0:01:38]}  Rxc8 {[%clk 0:00:04]} 38. Rxf5 {[%clk 0:01:38]}  Rexc4 {[%clk 0:00:04]} 39. Rf6+ {[%clk 0:01:32]}  Kg7 {[%clk 0:00:05]} 40. Rf7+ {[%clk 0:01:32]}  Kg8 {[%clk 0:00:05]} 41. Rxb7 {[%clk 0:01:32]}  Rd4 {[%clk 0:00:04]} 42. Rb6 {[%clk 0:01:11]}  Rxd5 {[%clk 0:00:02]} 43. Rxa6 {[%clk 0:01:11]}  Rb8 {[%clk 0:00:03]} 44. Rb2 {[%clk 0:01:04]}  Rdb5 {[%clk 0:00:02]} 45. Rb6 {[%clk 0:01:01]}  R8xb6 {[%clk 0:00:02]} 46. axb6 {[%clk 0:01:02]}  Rxb6 {[%clk 0:00:02]} 47. b5 {[%clk 0:01:00]}  Kf7 {[%clk 0:00:03]} 48. Kg2 {[%clk 0:01:01]}  Ke6 {[%clk 0:00:04]} 49. Kf3 {[%clk 0:01:01]}  Kf5 {[%clk 0:00:04]} 50. Rb4 {[%clk 0:00:59]}  h5 {[%clk 0:00:04]} 51. Ke3 {[%clk 0:00:59]}  Ke5 {[%clk 0:00:04]} 52. Kf3 {[%clk 0:00:59]}  Kf5 {[%clk 0:00:04]} 53. h4 {[%clk 0:00:59]}  gxh4 {[%clk 0:00:04]} 54. Rxh4 {[%clk 0:00:53]}  Kg5 {[%clk 0:00:04]} 55. Rb4 {[%clk 0:00:54]}  Kf5 {[%clk 0:00:05]} 56. Kg2 {[%clk 0:00:53]}  Kg6 {[%clk 0:00:02]} 57. Kh3 {[%clk 0:00:53]}  Kg5 {[%clk 0:00:02]} 58. Rb3 {[%clk 0:00:53]}  Kf5 {[%clk 0:00:01]} 59. Kh4 {[%clk 0:00:53]}  Kg6 {[%clk 0:00:02]} 60. Rb4 {[%clk 0:00:53]}  Kh6 {[%clk 0:00:02]} 61. Kh3 {[%clk 0:00:44]}  Kg5 {[%clk 0:00:03]} 62. Kg2 {[%clk 0:00:45]}  Kf5 {[%clk 0:00:02]} 63. Kf3 {[%clk 0:00:45]}  Kg5 {[%clk 0:00:02]} 64. Ke3 {[%clk 0:00:45]}  Kf5 {[%clk 0:00:02]} 65. Kd4 {[%clk 0:00:42]} 1-0


[Site "https://www.chess.com"]